Cogmind - Beta 13 @@@ ROGUE MODE // 2024.06.01 @ 21:59:36 Player: HeartGrenade Result: Destroyed by H-61 Shepherd with Heavy Assault Cannon Performance ------------- Evolutions (4) 2000 Regions Visited (9) 1800 Robots Destroyed (113) 565 Value Destroyed (4100) 4100 Prototype IDs (29) 580 Alien Tech Used (0) 0 Bonus (377) 377 TOTAL SCORE: 9422 Bonus ------- High Alert Combat Kills 77 Met Data Miner 300 Cogmind --------- Core Integrity 0/850 Matter 55/300 Energy 100/100 System Corruption 7% Temperature Cool (0) Movement Core (750) Ox14 Location -6/Factory Parts ------- > --- POWER (2) -------- (None) > --- PROPULSION (4) --- (None) > --- UTILITY (7) ------ Experimental Heat Sink High-capacity Storage Unit Launcher Guidance Computer > --- WEAPON (2) ------- Coil Gun > --- INVENTORY (20) --- Light Angular Momentum Engine Advanced Terrain Scan Processor Hardened Medium Armor Plating Thermic Laser Improved EM Pulse Cannon Improved EM Pulse Cannon Improved EM Pulse Cannon Gauss Rifle Plasma Cutter Multitool Great Axe Peak State ------------ > --- POWER ------------ (None) > --- PROPULSION ------- Cargo Legs > --- UTILITY ---------- Experimental Heat Sink High-capacity Storage Unit Launcher Guidance Computer Experimental ECM Suite Experimental Thermal Defense Suite > --- WEAPON ----------- Coil Gun Coil Gun > --- INVENTORY -------- Light Angular Momentum Engine Advanced Terrain Scan Processor Hardened Medium Armor Plating Thermic Laser Improved EM Pulse Cannon Improved EM Pulse Cannon Improved EM Pulse Cannon Gauss Rifle Gauss Rifle Coil Gun Plasma Cutter Multitool Great Axe [Rating: 60] Favorites ----------- Power Enhanced Nuclear Core Engine Ion Engine Power Core Enhanced Nuclear Core Propulsion Light Treads Treads Light Treads Leg Carbon-fiber Leg Wheel Subdweller Monowheel Utility High-capacity Storage Unit Device Structural Scanner Storage High-capacity Storage Unit Processor Launcher Guidance Computer Hackware System Shield Protection Hardened Medium Armor Plating Weapon Gauss Rifle Energy Gun Small Laser Energy Cannon Subdweller Beam Cannon Ballistic Gun Gauss Rifle Ballistic Cannon Light Cannon Launcher Grenade Launcher Special Weapon Multitool Slashing Weapon Great Axe Build | -11 -10 -10 -8 -7 -7 -7 -7 -6 -6 ------- Run | Yrd Mat Sub Mat Fac Low Low Dat Pro Fac Slots Evolved 8 | . . . 4 2 . . . . 2 Power 1 | . . . . . . . . . 1 Propulsion 2 | . . . 2 . . . . . . Utility 5 | . . . 2 2 . . . . 1 Weapon . | . . . . . . . . . . Parts Attached 114 | 4 3 12 34 7 3 2 . 5 44 Power 5 | . . 1 2 1 . . . . 1 Engine 3 | . . 1 2 . . . . . . Core 2 | . . . . 1 . . . . 1 Reactor . | . . . . . . . . . . Propulsion 26 | 2 1 3 14 . 1 . . 1 4 Treads 20 | 2 1 2 11 . 1 . . 1 2 Leg 4 | . . . 3 . . . . . 1 Wheel 2 | . . 1 . . . . . . 1 Hover . | . . . . . . . . . . Flight . | . . . . . . . . . . Utility 32 | . 2 3 9 3 . . . 2 13 Device 13 | . 1 . 2 2 . . . . 8 Storage 1 | . . 1 . . . . . . . Processor 6 | . 1 . . 1 . . . 1 3 Hackware 1 | . . . . . . . . . 1 Protection 11 | . . 2 7 . . . . 1 1 Artifact . | . . . . . . . . . . Weapon 51 | 2 . 5 9 3 2 2 . 2 26 Energy Gun 6 | 1 . . 3 . . . . 1 1 Energy Cannon 2 | . . 2 . . . . . . . Ballistic Gun 23 | 1 . 2 5 1 . . . . 14 Ballistic Cannon 1 | . . 1 . . . . . . . Launcher 10 | . . . 1 1 1 1 . . 6 Special Weapon 2 | . . . . . . . . . 2 Impact Weapon . | . . . . . . . . . . Slashing Weapon 7 | . . . . 1 1 1 . 1 3 Piercing Weapon . | . . . . . . . . . . Special Melee Weapon . | . . . . . . . . . . Unidentified Prototypes 7 | . . . 2 1 . . . . 4 Parts Lost 43 | . . 4 10 . . . . 2 27 Power 3 | . . 1 . . . . . . 2 Propulsion 15 | . . 1 6 . . . . 1 7 Utility 13 | . . 1 1 . . . . 1 10 Weapon 12 | . . 1 3 . . . . . 8 Highest Loss Streak 22 | . . 2 3 . . . . 1 22 To Critical Strikes . | . . . . . . . . . . Average Slot Usage (%) 90 | . 73 81 95 94 100 100 100 99 91 Engine 5 | . . 11 8 1 . . . . . Core 2 | . . . . 5 7 7 7 7 8 Treads 26 | . 26 25 26 30 30 30 30 29 24 Leg 1 | . . . 6 . . . . . . Device 9 | . 9 . 5 16 23 23 23 19 17 Storage 5 | . . 1 9 7 7 7 7 7 5 Processor 3 | . 8 . . 2 7 7 7 10 9 Protection 12 | . . 12 19 13 7 7 7 7 5 Energy Gun 1 | . 14 1 2 . . . . 2 . Energy Cannon 3 | . . 11 . . . . . . . Ballistic Gun 11 | . 14 13 13 13 7 7 7 7 10 Ballistic Cannon 1 | . . 2 2 . . . . . . Slashing Weapon 1 | . . . . 1 6 7 7 4 1 Naked Turns . | . . . . . . . . . . Heaviest Build 81 | 2 3 47 71 67 67 67 67 67 81 Greatest Support 90 | 40 40 40 85 82 90 90 90 90 90 Greatest Overweight (x) 18 | . . 2 2 . . . . 1 18 Average Overweight (x) . | . . . . . . . . . . Largest Inventory Capacity 20 | 5 5 20 20 20 20 20 20 20 20 Average Capacity 15 | 5 5 6 20 20 20 20 20 20 20 Most Carried 20 | 1 5 10 20 20 20 20 20 20 20 Average Carried 14 | . 4 5 18 19 19 20 20 19 19 Final Capacity 20 | 5 5 20 20 20 20 20 20 20 20 Final Carried 20 | 1 5 10 20 20 20 20 20 20 11 Class Distribution -------------------- 52% | Mutant 43% | Scavenger-Mutant 3% | Derelict-Mutant Dominant Class ---------------- Mutant | -10/Materials Mutant | -10/Subcaves Mutant | -8/Materials Scavenger-Mutant | -7/Factory Scavenger-Mutant | -7/Lower Caves Scavenger-Mutant | -7/Lower Caves Scavenger-Mutant | -7/Data Miner Scavenger-Mutant | -6/Proximity Caves Scavenger-Mutant | -6/Factory Resources | -11 -10 -10 -8 -7 -7 -7 -7 -6 -6 ----------- Run | Yrd Mat Sub Mat Fac Low Low Dat Pro Fac Matter Collected 2814 | 191 88 361 1298 92 83 59 . 57 585 Remotely . | . . . . . . . . . . Salvage Created 4335 | . 145 861 1821 50 183 10 . 63 1202 Parts 257 | . 5 63 105 14 7 2 . 2 59 Haulers Intercepted 4 | . . . 4 . . . . . . Recyclers Shooed 5 | . 1 . 1 . . . . . 3 Parts Field Recycled . | . . . . . . . . . . Retrieved Matter . | . . . . . . . . . . Parts Self-Destructed 20 | . . 17 . . . 2 . 1 . Prevented 6 | . . . . . 6 . . . . Kills | -11 -10 -10 -8 -7 -7 -7 -7 -6 -6 ------- Run | Yrd Mat Sub Mat Fac Low Low Dat Pro Fac Combat Hostiles Destroyed 95 | . 3 22 36 3 3 3 . 1 24 Melee 1 | . . . . . . . . . 1 Guns 53 | . 3 10 27 1 . . . . 12 Cannons 16 | . . 12 4 . . . . . . AOE 23 | . . . 5 2 2 3 . . 11 Classes Destroyed 16 | . 1 4 5 1 1 . . 1 3 Worker 3 | . . . 3 . . . . . . Builder 4 | . . . . 2 . . . . 2 Tunneler 3 | . . . 2 . . . . . 1 Hauler 4 | . . . 4 . . . . . . Recycler 4 | . . . 2 . . . . . 2 Swarmer 18 | . . 1 8 3 . 3 . . 3 Grunt 34 | . 3 1 21 . 2 . . . 7 Brawler 1 | . . . . . 1 . . . . Duelist 1 | . . . 1 . . . . . . Protector 2 | . . . . . . . . . 2 Sentry 9 | . . 1 6 . . . . . 2 Specialist 1 | . . . . . . . . . 1 Hunter 5 | . . . . . . . . 1 4 Programmer 5 | . . . . . . . . . 5 Artisan 1 | . . 1 . . . . . . . Subdweller 19 | . . 19 . . . . . . . Best Kill Streak 7 | . 2 4 5 3 3 3 . 1 7 Combat Bots Only 5 | . 2 4 3 3 3 3 . 1 5 Max Kills in Single Turn 5 | . 1 1 5 1 1 2 . 1 3 Gunslinging . | . . . . . . . . . . Exploded 3 | . . . 3 1 1 2 . . 2 Melee 1 | . . . . . . . . . 1 Uniques/NPCs Destroyed . | . . . . . . . . . . Combat | -11 -10 -10 -8 -7 -7 -7 -7 -6 -6 -------- Run | Yrd Mat Sub Mat Fac Low Low Dat Pro Fac Hostile Shots Fired 859 | . 14 104 194 7 3 7 . 72 458 Missed 261 | . 3 29 52 5 1 3 . 20 148 Damage Taken 9382 | . 156 1564 2271 31 30 59 . 706 4565 Core 1297 | . 16 142 192 . . . . 53 894 Absorbed by Shields 480 | . . . . . . . . . 480 Redirected to Shielding 37 | . . . 37 . . . . . . Ignored by Resistances 26 | . . . . . . . . . 26 Regen/Repaired (Parts) 58 | . 58 . . . . . . . . Core Remaining (%) 73 | 100 . 36 65 . . . . 92 . Volleys Fired 333 | . 13 90 148 5 5 3 . 8 61 Largest 2 | . 2 2 2 2 1 1 . 2 2 Hottest 120 | . 60 120 94 56 39 36 . 113 113 Shots Fired 614 | . 26 160 289 8 5 3 . 16 107 Gun 489 | . 26 88 254 6 . . . 16 99 Cannon 101 | . . 72 29 . . . . . . Launcher 24 | . . . 6 2 5 3 . . 8 Special . | . . . . . . . . . . Kinetic 456 | . 13 91 241 6 . . . 8 97 Thermal 137 | . 13 69 42 . . . . 8 5 Explosive 14 | . . . 6 2 . 3 . . 3 Electromagnetic 7 | . . . . . 5 . . . 2 Robot Hit Streak 19 | . 11 19 12 3 4 2 . 4 12 Robot Miss Streak 6 | . 1 2 4 2 1 1 . 6 2 Penetration Max 1 | . . . . . . . . . 1 Secondary Targets 2 | . . . 2 . . . . . . Max Gunslinging Chain 1 | . . . 1 . . . . . . Shots Hit Robots 415 | . 22 104 195 6 4 2 . 6 76 Core Hits 211 | . 8 31 88 5 4 4 . 2 69 Critical Kills 1 | . . 1 . . . . . . . Critical Parts Destroyed 7 | . . 1 4 . . . . . 2 Critical Strikes 16 | . . 3 10 . . . . 1 2 Burn 5 | . . . 4 . . . . 1 . Destroy 9 | . . 3 4 . . . . . 2 Blast 2 | . . . 2 . . . . . . Melee Attacks 15 | . . . . 2 4 1 . 4 4 Impact . | . . . . . . . . . . Slashing 15 | . . . . 2 4 1 . 4 4 Piercing . | . . . . . . . . . . Sneak Attacks 2 | . . . . 2 . . . . . Combat Hostiles . | . . . . . . . . . . Follow-up Attacks . | . . . . . . . . . . Damage Inflicted 11388 | . 228 2208 4041 484 289 323 . 101 3714 Guns 5992 | . 224 959 3255 55 . . . 101 1398 Cannons 1562 | . . 1249 313 . . . . . . Explosions 3593 | . . . 471 244 289 323 . . 2266 Melee 235 | . . . . 185 . . . . 50 Ramming 6 | . 4 . 2 . . . . . . Kinetic 6740 | . 80 1032 3135 55 . . . 47 2391 Thermal 2168 | . 144 1176 433 . . . . 54 361 Explosive 1722 | . . . 471 244 . 323 . . 684 Electromagnetic 517 | . . . . . 289 . . . 228 Impact . | . . . . . . . . . . Slashing 235 | . . . . 185 . . . . 50 Piercing . | . . . . . . . . . . Highest Corruption 7 | . . . . . . . . . 7 Average Corruption 1 | . . . . . . . . . 1 Corruption Purged . | . . . . . . . . . . Corruption Blocked . | . . . . . . . . . . Effects 3 | . . . . . . . . . 3 Heat Flow Errors 1 | . . . . . . . . . 1 Parts Rejected 1 | . . . . . . . . . 1 Data Loss (minor) 1 | . . . . . . . . . 1 Overload Shots . | . . . . . . . . . . Overflow Damage 192 | . . 6 7 105 . . . . 74 Projectiles 13 | . . 6 7 . . . . . . Explosions 74 | . . . . . . . . . 74 Melee 105 | . . . . 105 . . . . . Knockbacks 2 | . . 1 1 . . . . . . Impact . | . . . . . . . . . . Kinetic 2 | . . 1 1 . . . . . . Secondary . | . . . . . . . . . . Self-Inflicted Damage 114 | . 2 . 31 . . . . . 81 Shots 3 | . . . 1 . . . . . 2 Rammed 2 | . 1 . 1 . . . . . . Targets Rammed 2 | . 1 . 1 . . . . . . Kicked . | . . . . . . . . . . Crushed . | . . . . . . . . . . Highest Temperature 300 | . 39 60 222 . . . . 112 300 Average Temperature 52 | . 19 20 49 . . . . 57 112 Received Heat Transfer 1864 | . 90 240 963 . 18 . . 36 517 Effects 3 | . . . . . . . . . 3 Interference 3 | . . . . . . . . . 3 Siege Activations . | . . . . . . . . . . Robots Corrupted 1 | . . . . . 1 . . . . Combat Hostiles 1 | . . . . . 1 . . . . Parts Fried 1 | . . . . . 1 . . . . Impact Corruptions . | . . . . . . . . . . Robots Melted 1 | . . . . . . . . 1 . Combat Hostiles 1 | . . . . . . . . 1 . Parts Melted 7 | . 2 1 1 . . . . 3 . Heat Transferred 3911 | . 325 1617 1369 . . . . 250 350 Parts Sabotaged . | . . . . . . . . . . Parts Stolen . | . . . . . . . . . . Parts Stripped . | . . . . . . . . . . Power Chain Reactions . | . . . . . . . . . . Alert | -11 -10 -10 -8 -7 -7 -7 -7 -6 -6 ------- Run | Yrd Mat Sub Mat Fac Low Low Dat Pro Fac Peak Influence 513 | . 170 . 513 367 . . . . 308 Initial 233 | . . . . 233 . . . . . Average 185 | . 103 . 244 257 . . . . 62 Maximum Alert Level 2 | . . . 2 1 . . . . 1 Low Security (%) 61 | 100 100 . 51 10 . . . . 91 Level 1 23 | . . . 22 89 . . . . 8 Level 2 14 | . . . 26 . . . . . . Level 3 . | . . . . . . . . . . Level 4 . | . . . . . . . . . . Level 5 . | . . . . . . . . . . High Security . | . . . . . . . . . . Max Security . | . . . . . . . . . . Squads Dispatched 18 | . 1 . 7 . . . . . 10 Investigation 1 | . . . . . . . . . 1 Extermination 1 | . . . . . . . . . 1 Reinforcement 10 | . 1 . 4 . . . . . 5 Assault . | . . . . . . . . . . Garrison 6 | . . . 3 . . . . . 3 Intercept . | . . . . . . . . . . Searches Triggered . | . . . . . . . . . . Construction Impeded 3 | . . . 1 . . . . . 2 Haulers Reinforced . | . . . . . . . . . . Active Scanning Responses . | . . . . . . . . . . Cargo Convoy Interrupts 1 | . . . . . . . . . 1 Stealth | -11 -10 -10 -8 -7 -7 -7 -7 -6 -6 --------- Run | Yrd Mat Sub Mat Fac Low Low Dat Pro Fac Distress Signals 3 | . 1 . 2 . . . . . . Communications Jammed . | . . . . . . . . . . Distress Signals . | . . . . . . . . . . Times Spotted 164 | . 6 42 61 6 3 3 . 2 41 Peak Tracking Total 13 | . 3 9 6 3 3 3 . 1 13 Tactical Retreats 9 | . 2 2 1 . . . . 1 3 Traps | -11 -10 -10 -8 -7 -7 -7 -7 -6 -6 ------- Run | Yrd Mat Sub Mat Fac Low Low Dat Pro Fac Traps Triggered 2 | . . 2 . . . . . . . Indirectly . | . . . . . . . . . . Trap Hack Attempts . | . . . . . . . . . . Triggered . | . . . . . . . . . . Disarmed . | . . . . . . . . . . Reprogrammed . | . . . . . . . . . . Reused . | . . . . . . . . . . Traps Extracted . | . . . . . . . . . . Installed . | . . . . . . . . . . Triggered . | . . . . . . . . . . Machines | -11 -10 -10 -8 -7 -7 -7 -7 -6 -6 ---------- Run | Yrd Mat Sub Mat Fac Low Low Dat Pro Fac Machines Disabled 5 | . . 1 . 1 . . . . 3 Max in Single Turn 3 | . . 1 . 1 . . . . 3 Garrison Access 1 | . . . 1 . . . . . . Machines Repaired . | . . . . . . . . . . Machines Dismantled . | . . . . . . . . . . Machines Sabotaged . | . . . . . . . . . . Overloaded Fab Kills . | . . . . . . . . . . Hacking | -11 -10 -10 -8 -7 -7 -7 -7 -6 -6 --------- Run | Yrd Mat Sub Mat Fac Low Low Dat Pro Fac Machines Accessed 25 | . 4 2 9 2 . . 3 . 5 Terminals 14 | . 3 . 7 1 . . . . 3 Fabricators 1 | . . . . 1 . . . . . Repair Stations 2 | . 1 . . . . . . . 1 Recycling Units . | . . . . . . . . . . Scanalyzers 1 | . . . 1 . . . . . . Garrison Access 2 | . . . 1 . . . . . 1 Total Hacks 74 | . 13 5 23 4 . . 19 . 10 Successful 41 | . 5 5 10 2 . . 19 . . Failed 32 | . 7 . 13 2 . . . . 10 Catastrophic 7 | . 1 . 2 1 . . . . 3 Database Lockouts 1 | . 1 . . . . . . . . Manual 16 | . 2 . 10 1 . . . . 3 Terminals 36 | . 10 . 19 2 . . . . 5 Fabricators 2 | . . . . 2 . . . . . Repair Stations 5 | . 3 . . . . . . . 2 Recycling Units . | . . . . . . . . . . Scanalyzers 2 | . . . 2 . . . . . . Garrison Access 5 | . . . 2 . . . . . 3 Terminal Hacks 34 | . 3 5 6 1 . . 19 . . Record 7 | . . 4 . . . . 3 . . Part Schematic 11 | . . . 1 . . . 10 . . Robot Schematic 3 | . . . . . . . 3 . . Robot Analysis 1 | . 1 . . . . . . . . Prototype ID Bank 5 | . . . 2 . . . 3 . . Branch Access Points 1 | . . . . 1 . . . . . Locate Traps 1 | . 1 . . . . . . . . Hauler Manifests 3 | . 1 . 2 . . . . . . Zone Layout 1 | . . . 1 . . . . . . Derelict Proto ID Bank 1 | . . 1 . . . . . . . Fabricator Hacks . | . . . . . . . . . . Repair Station Hacks 2 | . 2 . . . . . . . . Scan Component 1 | . 1 . . . . . . . . Repair 1 | . 1 . . . . . . . . Recycling Unit Hacks . | . . . . . . . . . . Scanalyzer 2 | . . . 2 . . . . . . Insert Component 1 | . . . 1 . . . . . . Analyze 1 | . . . 1 . . . . . . Garrison Access Hacks 1 | . . . 1 . . . . . . Seal Access 1 | . . . 1 . . . . . . Unauthorized Hacks 2 | . . . 1 1 . . . . . Terminals 1 | . . . 1 . . . . . . Botnet 1 | . . . 1 . . . . . . Fabricators 1 | . . . . 1 . . . . . Haulers 1 | . . . . 1 . . . . . Repair Stations . | . . . . . . . . . . Recycling Units . | . . . . . . . . . . Scanalyzers . | . . . . . . . . . . Garrison Access . | . . . . . . . . . . Data Cores Recovered . | . . . . . . . . . . Used . | . . . . . . . . . . Hacking Detections 15 | . 2 . 8 2 . . . . 3 Full Trace Events 1 | . . . . . . . . . 1 Feedback Events . | . . . . . . . . . . Feedback Blocked . | . . . . . . . . . . Robot Schematics Acquired 3 | . . . . . . . 3 . . Robots Built . | . . . . . . . . . . Authchips . | . . . . . . . . . . Time . | . . . . . . . . . . Total Robot Build Rating . | . . . . . . . . . . Part Schematics Acquired 12 | . . . 2 . . . 10 . . Parts Built . | . . . . . . . . . . Authchips . | . . . . . . . . . . Time . | . . . . . . . . . . Total Part Build Rating . | . . . . . . . . . . Parts Repaired 1 | . 1 . . . . . . . . Time 26 | . 26 . . . . . . . . Parts Recycled . | . . . . . . . . . . Recycled Matter . | . . . . . . . . . . Retrieved Matter . | . . . . . . . . . . Retrieved Components . | . . . . . . . . . . Parts Scanalyzed 1 | . . . 1 . . . . . . Part Schematics Acquired 1 | . . . 1 . . . . . . Parts Damaged . | . . . . . . . . . . Bothacking | -11 -10 -10 -8 -7 -7 -7 -7 -6 -6 ------------ Run | Yrd Mat Sub Mat Fac Low Low Dat Pro Fac Used RIF Installer . | . . . . . . . . . . Robots Hacked . | . . . . . . . . . . Non-combat . | . . . . . . . . . . Combat . | . . . . . . . . . . Robot Hacks Applied . | . . . . . . . . . . Relay Couplers Released 4 | . . . . . . . . . 4 Programmers 4 | . . . . . . . . . 4 Fabnet Peak Effective % . | . . . . . . . . . . Robots Rewired . | . . . . . . . . . . Allies Hacked . | . . . . . . . . . . Hacks Repelled . | . . . . . . . . . . Allies | -11 -10 -10 -8 -7 -7 -7 -7 -6 -6 -------- Run | Yrd Mat Sub Mat Fac Low Low Dat Pro Fac Total Allies . | . . . . . . . . . . Largest Group . | . . . . . . . . . . Highest-Rated Group . | . . . . . . . . . . Highest-Rated Ally . | . . . . . . . . . . Total Orders . | . . . . . . . . . . Ally Attacks . | . . . . . . . . . . Total Damage . | . . . . . . . . . . Kills . | . . . . . . . . . . Allies Corrupted . | . . . . . . . . . . Allies Melted . | . . . . . . . . . . Intel | -11 -10 -10 -8 -7 -7 -7 -7 -6 -6 ------- Run | Yrd Mat Sub Mat Fac Low Low Dat Pro Fac Robot Analysis Total 1 | . 1 . . . . . . . . Derelict Logs Recovered 5 | . . 2 . . 2 . . 1 . Drone Launches . | . . . . . . . . . . Drone Recoveries . | . . . . . . . . . . Exploration | -11 -10 -10 -8 -7 -7 -7 -7 -6 -6 ------------- Run | Yrd Mat Sub Mat Fac Low Low Dat Pro Fac Turns Passed 9177 | 39 333 2566 2771 448 580 327 121 702 1290 Spaces Moved 4793 | 32 270 1393 1194 260 324 200 77 413 630 Core 288 | 17 267 1 . . . . . . 3 Treads 4183 | 15 3 1210 1061 260 324 200 77 413 620 Legs 119 | . . . 117 . . . . . 2 Wheels 203 | . . 182 16 . . . . . 5 Hover . | . . . . . . . . . . Flight . | . . . . . . . . . . Fastest Speed 50 | 50 50 50 130 158 158 158 158 158 145 Average Speed 157 | 101 51 158 179 158 158 158 158 159 163 Slowest Speed 950 | 160 160 260 260 158 158 158 158 238 950 Overloaded Moves . | . . . . . . . . . . Propulsion Burnouts . | . . . . . . . . . . Robots Hopped . | . . . . . . . . . . Cave-ins Triggered . | . . . . . . . . . . Exploration Rate (%) 45 | 3 42 77 79 8 52 41 68 62 18 Regions Visited 9 Branch Regions 5 Pre-discovered Areas 3 | . . . . . 1 . 1 1 . Known Exits Taken 2 | . . . 1 1 . . . . . Unknown Exits Taken 7 | 1 1 1 . . 1 1 1 1 . Scrap Searched 11 | . . 6 . . 2 2 . 1 . Spaces Dug 12 | . . . . . 4 1 . 4 3 Terrain Destroyed 161 | . . 11 19 18 4 17 . 4 88 Melee 12 | . . . . . 4 1 . 4 3 Projectile 18 | . . 11 1 . . . . . 6 AOE 131 | . . . 18 18 . 16 . . 79 Terrain Rammed . | . . . . . . . . . . Walls Destroyed . | . . . . . . . . . . Machines Disabled . | . . . . . . . . . . Actions | -11 -10 -10 -8 -7 -7 -7 -7 -6 -6 --------- Run | Yrd Mat Sub Mat Fac Low Low Dat Pro Fac Total 5799 | 36 441 1597 1573 290 379 205 76 433 769 Wait 412 | . 145 72 135 2 41 . . 3 14 Move 4783 | 31 269 1392 1193 259 323 199 76 412 629 Hop . | . . . . . . . . . . Pick Up 60 | 1 7 8 31 7 1 . . 1 4 Fast Attach 47 | 4 3 5 19 3 1 . . 1 11 Attach 25 | . . 3 8 1 . . . 1 12 Detach 6 | . . 1 4 . . . . . 1 Swap 42 | . . 4 7 3 2 2 . 3 21 Drop 59 | . 3 9 27 8 2 . . . 10 Fire 333 | . 13 90 148 5 5 3 . 8 61 Melee 15 | . . . . 2 4 1 . 4 4 Ram 1 | . 1 . . . . . . . . Kick . | . . . . . . . . . . Crush 1 | . . . 1 . . . . . . Escape Stasis . | . . . . . . . . . . Rewire . | . . . . . . . . . . Trap . | . . . . . . . . . . Miscellaneous 15 | . . 13 . . . . . . 2 Route ------- -11/Scrapyard -10/Materials -10/Subcaves (discovered 3 exits: *Mat x2 / [*Rec]) -8/Materials (discovered 3 exits: *Fac x3) -7/Factory (discovered 2 exits: *Low x2) -7/Lower Caves -7/Lower Caves -7/Data Miner -6/Proximity Caves -6/Factory (discovered 2 exits: *Fac x2) History --------- Turn | Location | Event 28 | -11/Scrapyard | Discovered new exit (range 15) 40 | -11/Scrapyard | Entered Materials 44 | -10/Materials | Central database locked down 252 | -10/Materials | Repaired Lgt. Treads 311 | -10/Materials | Build established: Mutant 355 | -10/Materials | Discovered new exit (range 6) 373 | -10/Materials | Entered Subcaves 513 | -10/Subcaves | Shifting Twisted Machinery released Flamer 522 | -10/Subcaves | Shifting Twisted Machinery released Sub. Beam Cannon 562 | -10/Subcaves | Ambushed by swarm of Subdwellers 566 | -10/Subcaves | Ambushed by Subdwellers from Twisted Machinery 566 | -10/Subcaves | Ambushed by Subdwellers from Twisted Machinery 623 | -10/Subcaves | Shifting Twisted Machinery released Sub. Machine Gun 624 | -10/Subcaves | Learned Materials trap positions 668 | -10/Subcaves | Shifting Twisted Machinery released Shrapnel Trap 805 | -10/Subcaves | Discovered new exit (range 16) 885 | -10/Subcaves | A swath of the cavern ceiling suddenly collapsed 1041 | -10/Subcaves | Disturbed a concealed Subdweller 1413 | -10/Subcaves | Discovered new exit (range 5) 1523 | -10/Subcaves | Visited Clippyterm 1528 | -10/Subcaves | Learned Factory fabricator intel 1622 | -10/Subcaves | Visited 4L-MR0's lab 1775 | -10/Subcaves | Discovered new exit (range 9) 2064 | -10/Subcaves | A swath of the cavern ceiling suddenly collapsed 2388 | -10/Subcaves | Ambushed by Subdweller buried in earth 2548 | -10/Subcaves | Ambushed by Subdweller buried in earth 2556 | -10/Subcaves | Ambushed by Subdweller buried in earth 2561 | -10/Subcaves | Core integrity fell below 50% 2564 | -10/Subcaves | Ambushed by Subdweller buried in earth 2697 | -10/Subcaves | Learned location of 1 exit from Materials 2717 | -10/Subcaves | Found Cargo Legs 2939 | -10/Subcaves | Entered Materials 2939 | -8/Materials | Evolved 4 slots: Propulsion x2, Utility x2 2940 | -8/Materials | Identified exit to Factory 2941 | -8/Materials | Loaded intel: 13 trap records 3232 | -8/Materials | Build established: Derelict-Mutant 3701 | -8/Materials | Lost 3 parts (1n2w) 3915 | -8/Materials | Build established: Mutant 3982 | -8/Materials | Garrison activated, responded to threat 4286 | -8/Materials | Discovered exit to Factory (range 13) 4887 | -8/Materials | Discovered exit to Factory (range 14) 5036 | -8/Materials | Build established: Scavenger-Mutant 5631 | -8/Materials | Build established: Mutant 5710 | -8/Materials | Entered Factory 5710 | -7/Factory | Evolved 2 slots: Utility x2 5711 | -7/Factory | Loaded intel: 6 fabricator locations 5750 | -7/Factory | Identified exit to Lower Caves 6028 | -7/Factory | Build established: Scavenger-Mutant 6158 | -7/Factory | Entered Lower Caves 6537 | -7/Lower Caves | Learned Factory emergency access door positions 6655 | -7/Lower Caves | Discovered new exit (range 3) 6738 | -7/Lower Caves | Entered another Lower Caves area 6954 | -7/Lower Caves | Discovered new exit (range 7) 7065 | -7/Lower Caves | Entered Data Miner 7065 | -7/Data Miner | Discovered new exit (range 6) 7096 | -7/Data Miner | Met Data Miner 7127 | -7/Data Miner | Learned location of Section 7 (-2) 7127 | -7/Data Miner | Acquired the access code to Warlord's prototype stash 7146 | -7/Data Miner | Received God Mode back door access code from Data Miner 7186 | -7/Data Miner | Entered Proximity Caves 7319 | -6/Proximity Caves | Spotted B-75 Beast 7468 | -6/Proximity Caves | Learned location of Zion (-6) 7781 | -6/Proximity Caves | Discovered new exit (range 14) 7888 | -6/Proximity Caves | Entered Factory 7888 | -6/Factory | Evolved 2 slots: Power x1, Utility x1 8118 | -6/Factory | Garrison activated, responded to threat 8487 | -6/Factory | Discovered new exit (range 10) 8917 | -6/Factory | Discovered new exit (range 9) 8944 | -6/Factory | Identified exit to Factory 9086 | -6/Factory | Cargo convoy interrupted 9108 | -6/Factory | Found Prototype Device 9108 | -6/Factory | Identified Exp. ECM Suite 9115 | -6/Factory | Attached Cargo Legs, gained temporary slots: Utility x2 9118 | -6/Factory | Core integrity fell below 50% 9121 | -6/Factory | Found Prototype Device 9121 | -6/Factory | Identified Exp. Thermal Defense Suite 9145 | -6/Factory | Core integrity fell below 20% 9178 | -6/Factory | Destroyed by H-61 Shepherd with Heavy Assault Cannon Last Messages --------------- 09172_ U-05 Engineer builds a Wall. 09173_ K-01 Serf collects debris. 09173_ U-05 Engineer lays Concrete. 09173_ K-01 Serf collects debris. 09173_ U-05 Engineer lays Concrete. 09174_ Penetrated by Slug. 09174_ Gauss Rifle destroyed. 09174_ Knocked back. 09175_ U-05 Engineer lays Concrete. 09175_ K-01 Serf collects debris. 09176_ System corrupted: Exp. ECM Suite rejected. 09176_ U-05 Engineer lays Concrete. 09176_ K-01 Serf collects debris. 09177_ U-05 Engineer lays Concrete. 09177_ Slug penetrates H-61 Shepherd. 09177_ U-05 Engineer lays Concrete. 09178_ H-61 Shepherd calls for reinforcements. 09178_ ALERT: Hostile activity reported, dispatching reinforcements to area. Map ----- +----------------------------------------------------+ | ?????????????+???????????????????????????????????? | | ?????????????????????????????????????????????????? | | ?????????????????????????????????????????????????? | | ?????????????????????????????????????????????????? | | ?????????????????????????????????????????????????? | | ?????????????????????????????????????????????????? | | ?????????????????????????????????????????????????? | | ?????????????????????????????????????????????????? | | ???????????????????????######????????????????????? | | ??????????????????????#########? ??????????????? | | ?????????????????????# ## ???????????????? | | ???????????????######## # ???????????????? | | ????????#??????####### # " ???????????????? | | ????????# ?????## # "T"??????????????? | | ??? ???? ## # """ ?????????????? | | ?? ####"####; # ####### | | ?? ^^ ; #######+############ | | ? # u ### | | ? ^ # %=!!= u# # | | ? H*!!!!! = #*%### """"""""" | | ?= #k!!!!!k =###### | | ? #!![=![[%u* !R=!% ! """"""""" | | ?? #![%!]!=%% %######! | | ?? ######## #=[!* *!!k %== # | | ??? ?????????? #==!!!!%= [ %[ # """ | | ??????????????? ##### @% ## "T %! | | ???????????????+######## % ; ## """ ! | | ?????????????????????? ##; ;###### | | ????????????????????? #?# ##???## | | ???????????????????? #?? #????######### | | ?????????????????? ? #???#????######### | | ????????????????? ? #??????????????? # """^"" | | ???????????????? ? +??????????????? # """ "" | | ?????????????? """ ??"????????????????? # """ "" | | ????????????? """???"????????????????? # | | ?????????????????#???##????????????????? # | | ???????????????????????????????????????? # ### | | ???????????????????????????????????????? # # | | ???????????????????????????????????????? # # ? | | ???????????????????????????????????????? + / ? | | ???????????????????????????????????????? # ??? | | ???????????????????????????????????????? # ??? | | ???????????????????????????????????????? # ??? | | ???????????????????????????????????????? # ? ??? | | ?????????????????????????????????????????????????? | | ?????????????????????????????????????????????????? | | ?????????????????????????????????????????????????? | | ?????????????????????????????????????????????????? | | ?????????????????????????????????????????????????? | | ?????????????????????????????????????????????????? | +----------------------------------------------------+ Best States ------------- Heat Dissipation 63 Energy Generation 27 Energy Capacity 350 Matter Stores 300 Matter Capacity 300 Sight Range 16 Terrain Scan Density 10 ECM Strength 3 Armor Coverage 800 Core Shielding 20 Evasion (%) 50 Targeting Accuracy 6 Launcher Accuracy 20 Recoil Reduction 4 Defensive Hacking 10 Item Schematics ----------------- Seismic Detector | -8/Materials | Hacked Hrd. Medium Armor Plating | -8/Materials | Scanalyzed Combat Drone Bay | -7/Data Miner | Free Lgt. Regenerative Plating | -7/Data Miner | Free Cld. Cesium-ion Thruster | -7/Data Miner | Free Exp. Targeting Computer | -7/Data Miner | Free Imp. Lightning Gun | -7/Data Miner | Free Nuclear Pulse Array | -7/Data Miner | Free Remote Force Field | -7/Data Miner | Free Lrn. Proton Cannon | -7/Data Miner | Free Enh. Optical Array | -7/Data Miner | Free Imp. Dynamic Insulation System | -7/Data Miner | Free Robot Schematics ------------------ A-15 Conveyor | -7/Data Miner | Free G-47 Trooper | -7/Data Miner | Free G-50 Soldier | -7/Data Miner | Free Fabricated ------------ Nothing Alien Tech Used ----------------- None Achievements -------------- None Challenges ------------ None Game ------ Seed GravmagHeartRay Manual? 0 Play Time 01:12:43 Cumulative 367.3 hours Start 2024.06.01 @ 17:22:54 End 2024.06.01 @ 21:59:36 Sessions 5 Manual Loads 0 Difficulty Rogue Special Mode None Game No. 158 Rogue 158 Adventurer 0 Explorer 0 Win Type - Total 18 Types 5/2/6/1/2/0/1/1/0 Lore% 85 Gallery% 84 Achievement% 72 Wizard Run 0 Options --------- Layout 2 ASCII 0 Keyboard 1 Movement Numpad Keybinds 0 Fullscreen 2 Font 24/Proggy Map View 50x44 Zoom Use 0% Tactical HUD 1 Map Filters NONE Filters NONE Steam 1 RUN: e8b9575e-105e-47e4-b8f0-fb4114a7d9b9